[Event "Titled Tuesday Blitz March 21 Early 2023"]
[White "Popov, Mikhail"]
[Black "Pakleza, Zbigniew"]
[WhiteFideId "4146182"]
[BlackFideId "1119290"]
[WhiteElo "2270"]
[BlackElo "2410"]
[Result "0-1"]
[Round "06"]
[TimeControl "180+2"]
[Date "2023.03.21"]
[WhiteClock "0:00:03"]
[BlackClock "0:00:56"]

1. d4 {[%clk 0:02:59]}  d6 {[%clk 0:02:56]} 2. Nf3 {[%clk 0:02:55]}  Bg4 {[%clk 0:02:56]} 3. e4 {[%clk 0:02:54]}  Nf6 {[%clk 0:02:56]} 4. Nc3 {[%clk 0:02:54]}  e6 {[%clk 0:02:56]} 5. h3 {[%clk 0:02:54]}  Bh5 {[%clk 0:02:56]} 6. Qe2 {[%clk 0:02:55]}  c6 {[%clk 0:02:56]} 7. g4 {[%clk 0:02:55]}  Bg6 {[%clk 0:02:57]} 8. h4 {[%clk 0:02:51]}  h5 {[%clk 0:02:57]} 9. g5 {[%clk 0:02:52]}  Nfd7 {[%clk 0:02:57]} 10. Bg2 {[%clk 0:02:41]}  Be7 {[%clk 0:02:56]} 11. Bd2 {[%clk 0:02:37]}  d5 {[%clk 0:02:56]} 12. O-O-O {[%clk 0:02:15]}  O-O {[%clk 0:02:55]} 13. Bf4 {[%clk 0:01:57]}  b5 {[%clk 0:02:52]} 14. Ne5 {[%clk 0:01:50]}  Nxe5 {[%clk 0:02:52]} 15. Bxe5 {[%clk 0:01:51]}  Nd7 {[%clk 0:02:41]} 16. exd5 {[%clk 0:01:24]}  exd5 {[%clk 0:02:40]} 17. Rhe1 {[%clk 0:00:55]}  Re8 {[%clk 0:02:37]} 18. Qf3 {[%clk 0:00:53]}  Qa5 {[%clk 0:02:04]} 19. Kb1 {[%clk 0:00:52]}  Bb4 {[%clk 0:02:04]} 20. Bf4 {[%clk 0:00:40]}  Nb6 {[%clk 0:01:59]} 21. Bc7 {[%clk 0:00:36]}  Bxc3 {[%clk 0:01:50]} 22. Qxc3 {[%clk 0:00:31]}  Qxc3 {[%clk 0:01:47]} 23. bxc3 {[%clk 0:00:32]}  Nc4 {[%clk 0:01:41]} 24. Kc1 {[%clk 0:00:20]}  f6 {[%clk 0:01:38]} 25. Bf1 {[%clk 0:00:16]}  Kf7 {[%clk 0:01:35]} 26. gxf6 {[%clk 0:00:15]}  gxf6 {[%clk 0:01:34]} 27. Bxc4 {[%clk 0:00:16]}  bxc4 {[%clk 0:01:28]} 28. Kd2 {[%clk 0:00:17]}  Be4 {[%clk 0:01:22]} 29. Re3 {[%clk 0:00:14]}  Rg8 {[%clk 0:01:20]} 30. f3 {[%clk 0:00:13]}  Rg2+ {[%clk 0:01:20]} 31. Re2 {[%clk 0:00:13]}  Bxf3 {[%clk 0:01:19]} 32. Rxg2 {[%clk 0:00:13]}  Bxg2 {[%clk 0:01:20]} 33. Re1 {[%clk 0:00:13]}  Be4 {[%clk 0:01:18]} 34. Rg1 {[%clk 0:00:12]}  Re8 {[%clk 0:01:13]} 35. Bf4 {[%clk 0:00:13]}  Bf5 {[%clk 0:01:13]} 36. Bh6 {[%clk 0:00:11]}  Re4 {[%clk 0:01:13]} 37. Rg7+ {[%clk 0:00:10]}  Ke6 {[%clk 0:01:12]} 38. Rxa7 {[%clk 0:00:10]}  Rxh4 {[%clk 0:01:12]} 39. a4 {[%clk 0:00:07]}  Rh2+ {[%clk 0:01:10]} 40. Ke3 {[%clk 0:00:07]}  Rxc2 {[%clk 0:01:11]} 41. a5 {[%clk 0:00:08]}  Rxc3+ {[%clk 0:01:10]} 42. Kf2 {[%clk 0:00:08]}  Ra3 {[%clk 0:01:09]} 43. a6 {[%clk 0:00:09]}  c3 {[%clk 0:01:05]} 44. Ra8 {[%clk 0:00:08]}  Bd3 {[%clk 0:01:01]} 45. a7 {[%clk 0:00:09]}  Kf5 {[%clk 0:01:02]} 46. Bc1 {[%clk 0:00:06]}  Ra2+ {[%clk 0:01:00]} 47. Ke3 {[%clk 0:00:06]}  Be4 {[%clk 0:01:00]} 48. Rh8 {[%clk 0:00:02]}  Rxa7 {[%clk 0:00:58]} 49. Rxh5+ {[%clk 0:00:03]}  Ke6 {[%clk 0:00:57]} 50. Rh2 {[%clk 0:00:03]}  Ra1 {[%clk 0:00:56]} 0-1


[Site "https://www.chess.com"]

[Event "Titled Tuesday Blitz March 21 Early 2023"]
[White "Mahdavi, Reza"]
[Black "Diaz Rosas, Julio Cesar"]
[WhiteFideId "12595926"]
[BlackFideId "5105099"]
[WhiteElo "2208"]
[BlackElo "2270"]
[Result "0-1"]
[Round "06"]
[TimeControl "180+2"]
[Date "2023.03.21"]
[WhiteClock "0:02:02"]
[BlackClock "0:02:19"]

1. Nf3 {[%clk 0:03:00]}  Nf6 {[%clk 0:02:58]} 2. g3 {[%clk 0:02:52]}  g6 {[%clk 0:02:57]} 3. b3 {[%clk 0:02:53]}  Bg7 {[%clk 0:02:57]} 4. Bb2 {[%clk 0:02:54]}  O-O {[%clk 0:02:56]} 5. Bg2 {[%clk 0:02:54]}  d5 {[%clk 0:02:55]} 6. c4 {[%clk 0:02:54]}  c5 {[%clk 0:02:50]} 7. cxd5 {[%clk 0:02:54]}  Qxd5 {[%clk 0:02:50]} 8. O-O {[%clk 0:02:34]}  Nc6 {[%clk 0:02:49]} 9. d4 {[%clk 0:02:34]}  Qh5 {[%clk 0:02:45]} 10. h4 {[%clk 0:02:27]}  Rd8 {[%clk 0:02:42]} 11. e3 {[%clk 0:02:23]}  Bg4 {[%clk 0:02:41]} 12. Nbd2 {[%clk 0:02:18]}  cxd4 {[%clk 0:02:39]} 13. e4 {[%clk 0:02:19]}  Ne5 {[%clk 0:02:31]} 14. Rc1 {[%clk 0:02:11]}  Nxe4 {[%clk 0:02:25]} 15. Nxe4 {[%clk 0:02:02]}  Nxf3+ {[%clk 0:02:22]} 16. Kh1 {[%clk 0:02:02]}  Nxh4 {[%clk 0:02:19]} 0-1


[Site "https://www.chess.com"]

[Event "Titled Tuesday Blitz March 21 Early 2023"]
[White "Molina, Roberto Junio Brito"]
[Black "Derjabin, Ilja"]
[WhiteFideId "2109450"]
[BlackFideId "14104768"]
[WhiteElo "2376"]
[BlackElo "2309"]
[Result "1-0"]
[Round "06"]
[TimeControl "180+2"]
[Date "2023.03.21"]
[WhiteClock "0:01:18"]
[BlackClock "0:00:01"]

1. d4 {[%clk 0:03:00]}  Nf6 {[%clk 0:02:59]} 2. c4 {[%clk 0:03:00]}  d6 {[%clk 0:02:59]} 3. Nf3 {[%clk 0:02:59]}  Bf5 {[%clk 0:02:58]} 4. Nc3 {[%clk 0:02:59]}  g6 {[%clk 0:02:58]} 5. g3 {[%clk 0:02:58]}  Bg7 {[%clk 0:02:58]} 6. Bg2 {[%clk 0:02:58]}  O-O {[%clk 0:02:57]} 7. O-O {[%clk 0:02:58]}  Ne4 {[%clk 0:02:51]} 8. Nxe4 {[%clk 0:02:55]}  Bxe4 {[%clk 0:02:51]} 9. Be3 {[%clk 0:02:55]}  Nd7 {[%clk 0:02:42]} 10. Qd2 {[%clk 0:02:55]}  c5 {[%clk 0:02:18]} 11. d5 {[%clk 0:02:53]}  Qb6 {[%clk 0:01:54]} 12. Bh6 {[%clk 0:02:48]}  Bxf3 {[%clk 0:01:26]} 13. Bxf3 {[%clk 0:02:39]}  Bxh6 {[%clk 0:01:13]} 14. Qxh6 {[%clk 0:02:39]}  Qxb2 {[%clk 0:01:02]} 15. Rab1 {[%clk 0:02:35]}  Qg7 {[%clk 0:01:02]} 16. Qxg7+ {[%clk 0:02:28]}  Kxg7 {[%clk 0:01:03]} 17. Rxb7 {[%clk 0:02:28]}  Rfd8 {[%clk 0:01:02]} 18. e3 {[%clk 0:02:25]}  Rab8 {[%clk 0:00:53]} 19. Rfb1 {[%clk 0:02:25]}  a5 {[%clk 0:00:49]} 20. R1b5 {[%clk 0:02:23]}  Rxb7 {[%clk 0:00:42]} 21. Rxb7 {[%clk 0:02:23]}  Kf6 {[%clk 0:00:41]} 22. Be2 {[%clk 0:02:16]}  e6 {[%clk 0:00:31]} 23. f4 {[%clk 0:02:07]}  exd5 {[%clk 0:00:25]} 24. cxd5 {[%clk 0:02:08]}  Kg7 {[%clk 0:00:16]} 25. Bf3 {[%clk 0:01:59]}  Nf6 {[%clk 0:00:14]} 26. Kf2 {[%clk 0:01:56]}  Rc8 {[%clk 0:00:12]} 27. g4 {[%clk 0:01:54]}  c4 {[%clk 0:00:12]} 28. g5 {[%clk 0:01:54]}  Ne8 {[%clk 0:00:09]} 29. Bd1 {[%clk 0:01:47]}  c3 {[%clk 0:00:08]} 30. Bc2 {[%clk 0:01:47]}  Rc5 {[%clk 0:00:04]} 31. e4 {[%clk 0:01:47]}  Nc7 {[%clk 0:00:05]} 32. Ke3 {[%clk 0:01:43]}  Na6 {[%clk 0:00:04]} 33. a3 {[%clk 0:01:42]}  Rc4 {[%clk 0:00:05]} 34. Rb6 {[%clk 0:01:39]}  Nc5 {[%clk 0:00:04]} 35. Rxd6 {[%clk 0:01:35]}  Nxe4 {[%clk 0:00:02]} 36. Rc6 {[%clk 0:01:26]}  Nd6 {[%clk 0:00:01]} 37. Bd3 {[%clk 0:01:22]}  Rxc6 {[%clk 0:00:01]} 38. dxc6 {[%clk 0:01:22]}  Kf8 {[%clk 0:00:01]} 39. Kd4 {[%clk 0:01:22]}  Ke7 {[%clk 0:00:01]} 40. Kxc3 {[%clk 0:01:22]}  Kd8 {[%clk 0:00:02]} 41. Kd4 {[%clk 0:01:22]}  Kc7 {[%clk 0:00:03]} 42. Kc5 {[%clk 0:01:21]}  Nc8 {[%clk 0:00:02]} 43. Be4 {[%clk 0:01:20]}  Nd6 {[%clk 0:00:01]} 44. Bd5 {[%clk 0:01:18]} 1-0


[Site "https://www.chess.com"]

[Event "Titled Tuesday Blitz March 21 Early 2023"]
[White "Richter, Nils"]
[Black "Nazari, Arad"]
[WhiteFideId "12990809"]
[BlackFideId "12577324"]
[WhiteElo "2381"]
[BlackElo "2313"]
[Result "0-1"]
[Round "06"]
[TimeControl "180+2"]
[Date "2023.03.21"]
[WhiteClock "0:00:33"]
[BlackClock "0:00:24"]

1. e4 {[%clk 0:03:00]}  e6 {[%clk 0:02:53]} 2. d4 {[%clk 0:03:00]}  d5 {[%clk 0:02:53]} 3. Nd2 {[%clk 0:03:01]}  Be7 {[%clk 0:02:53]} 4. Ngf3 {[%clk 0:03:00]}  Nf6 {[%clk 0:02:54]} 5. e5 {[%clk 0:03:00]}  Nfd7 {[%clk 0:02:54]} 6. c3 {[%clk 0:03:00]}  c5 {[%clk 0:02:55]} 7. Bd3 {[%clk 0:03:01]}  Nc6 {[%clk 0:02:55]} 8. O-O {[%clk 0:03:01]}  g5 {[%clk 0:02:56]} 9. Kh1 {[%clk 0:02:19]}  g4 {[%clk 0:02:38]} 10. Ng1 {[%clk 0:02:18]}  cxd4 {[%clk 0:02:39]} 11. cxd4 {[%clk 0:02:16]}  Nxd4 {[%clk 0:02:39]} 12. Qxg4 {[%clk 0:02:14]}  Nc6 {[%clk 0:02:17]} 13. Qg7 {[%clk 0:02:09]}  Rf8 {[%clk 0:02:14]} 14. f4 {[%clk 0:02:07]}  Nc5 {[%clk 0:02:08]} 15. Bxh7 {[%clk 0:02:05]}  Bd7 {[%clk 0:02:04]} 16. Ndf3 {[%clk 0:01:50]}  Qc7 {[%clk 0:01:40]} 17. Be3 {[%clk 0:01:45]}  O-O-O {[%clk 0:01:33]} 18. Rac1 {[%clk 0:01:43]}  Qa5 {[%clk 0:01:19]} 19. a3 {[%clk 0:01:41]}  Ne4 {[%clk 0:01:13]} 20. b4 {[%clk 0:01:35]}  Qxa3 {[%clk 0:01:09]} 21. Bc5 {[%clk 0:01:08]}  Bxc5 {[%clk 0:01:02]} 22. bxc5 {[%clk 0:01:08]}  Qxc1 {[%clk 0:01:01]} 23. Bxe4 {[%clk 0:01:01]}  Qxf1 {[%clk 0:01:00]} 24. Bh7 {[%clk 0:00:58]}  a5 {[%clk 0:00:51]} 25. Qg3 {[%clk 0:00:48]}  Rh8 {[%clk 0:00:49]} 26. Ng5 {[%clk 0:00:48]}  Be8 {[%clk 0:00:42]} 27. Bd3 {[%clk 0:00:44]}  Qd1 {[%clk 0:00:39]} 28. Be2 {[%clk 0:00:41]}  Qc1 {[%clk 0:00:36]} 29. f5 {[%clk 0:00:37]}  Nd4 {[%clk 0:00:28]} 30. Bg4 {[%clk 0:00:33]}  Qxg5 {[%clk 0:00:24]} 0-1


[Site "https://www.chess.com"]

[Event "Titled Tuesday Blitz March 21 Early 2023"]
[White "benny_aizenberg"]
[Black "Kosteniuk, Alexandra"]
[BlackFideId "4128125"]
[WhiteElo "2573"]
[BlackElo "2453"]
[Result "0-1"]
[Round "06"]
[TimeControl "180+2"]
[Date "2023.03.21"]
[WhiteClock "0:00:01"]
[BlackClock "0:00:05"]

1. e4 {[%clk 0:03:00]}  c6 {[%clk 0:02:59]} 2. d4 {[%clk 0:02:55]}  d5 {[%clk 0:02:59]} 3. e5 {[%clk 0:02:55]}  c5 {[%clk 0:02:59]} 4. dxc5 {[%clk 0:02:54]}  e6 {[%clk 0:03:00]} 5. Nf3 {[%clk 0:02:54]}  Bxc5 {[%clk 0:02:54]} 6. a3 {[%clk 0:02:54]}  f6 {[%clk 0:02:47]} 7. b4 {[%clk 0:02:53]}  Be7 {[%clk 0:02:47]} 8. Bb2 {[%clk 0:02:53]}  fxe5 {[%clk 0:02:42]} 9. Nxe5 {[%clk 0:02:51]}  Nf6 {[%clk 0:02:42]} 10. Bd3 {[%clk 0:02:44]}  O-O {[%clk 0:02:38]} 11. Nd2 {[%clk 0:02:41]}  Nc6 {[%clk 0:02:35]} 12. Ndf3 {[%clk 0:02:40]}  a5 {[%clk 0:02:31]} 13. b5 {[%clk 0:02:38]}  Nxe5 {[%clk 0:02:31]} 14. Nxe5 {[%clk 0:02:38]}  Bc5 {[%clk 0:02:30]} 15. O-O {[%clk 0:02:38]}  Qb6 {[%clk 0:02:28]} 16. Qe2 {[%clk 0:02:31]}  a4 {[%clk 0:02:10]} 17. Kh1 {[%clk 0:02:22]}  Bd4 {[%clk 0:02:03]} 18. Bxd4 {[%clk 0:02:15]}  Qxd4 {[%clk 0:02:04]} 19. Rab1 {[%clk 0:02:15]}  Ne4 {[%clk 0:01:59]} 20. Bxe4 {[%clk 0:02:11]}  dxe4 {[%clk 0:01:58]} 21. Nc4 {[%clk 0:02:08]}  e5 {[%clk 0:01:50]} 22. Rbd1 {[%clk 0:02:07]}  Qc5 {[%clk 0:01:49]} 23. Qxe4 {[%clk 0:02:04]}  Bf5 {[%clk 0:00:59]} 24. Qd5+ {[%clk 0:01:46]}  Qxd5 {[%clk 0:00:59]} 25. Rxd5 {[%clk 0:01:46]}  Be6 {[%clk 0:00:57]} 26. Rc5 {[%clk 0:01:44]}  Rac8 {[%clk 0:00:56]} 27. Rxc8 {[%clk 0:01:40]}  Rxc8 {[%clk 0:00:57]} 28. Nxe5 {[%clk 0:01:29]}  Rxc2 {[%clk 0:00:57]} 29. Rd1 {[%clk 0:01:21]}  g6 {[%clk 0:00:50]} 30. h4 {[%clk 0:01:09]}  Rb2 {[%clk 0:00:49]} 31. Rd6 {[%clk 0:01:04]}  Bf5 {[%clk 0:00:36]} 32. Rb6 {[%clk 0:00:51]}  Rxf2 {[%clk 0:00:34]} 33. Rxb7 {[%clk 0:00:29]}  Be4 {[%clk 0:00:35]} 34. Rb8+ {[%clk 0:00:27]}  Kg7 {[%clk 0:00:35]} 35. Kh2 {[%clk 0:00:18]}  Rxg2+ {[%clk 0:00:33]} 36. Kh3 {[%clk 0:00:19]}  Ra2 {[%clk 0:00:33]} 37. Nc4 {[%clk 0:00:14]}  Bd5 {[%clk 0:00:28]} 38. Nb6 {[%clk 0:00:10]}  Rxa3+ {[%clk 0:00:26]} 39. Kg4 {[%clk 0:00:10]}  Be6+ {[%clk 0:00:15]} 40. Kf4 {[%clk 0:00:10]}  Rb3 {[%clk 0:00:15]} 41. Ke5 {[%clk 0:00:07]}  Rxb5+ {[%clk 0:00:12]} 42. Kxe6 {[%clk 0:00:07]}  a3 {[%clk 0:00:13]} 43. Kd7 {[%clk 0:00:02]}  a2 {[%clk 0:00:12]} 44. Ra8 {[%clk 0:00:03]}  Rxb6 {[%clk 0:00:12]} 45. Rxa2 {[%clk 0:00:03]}  Rb4 {[%clk 0:00:12]} 46. Rh2 {[%clk 0:00:03]}  Re4 {[%clk 0:00:12]} 47. h5 {[%clk 0:00:01]}  g5 {[%clk 0:00:12]} 48. Kd6 {[%clk 0:00:01]}  Kh6 {[%clk 0:00:12]} 49. Kd5 {[%clk 0:00:02]}  Re8 {[%clk 0:00:10]} 50. Kd4 {[%clk 0:00:01]}  g4 {[%clk 0:00:10]} 51. Rh4 {[%clk 0:00:01]}  Kg5 {[%clk 0:00:10]} 52. Rh1 {[%clk 0:00:02]}  g3 {[%clk 0:00:11]} 53. Kd3 {[%clk 0:00:01]}  Kg4 {[%clk 0:00:11]} 54. h6 {[%clk 0:00:01]}  g2 {[%clk 0:00:10]} 55. Ra1 {[%clk 0:00:01]}  Kg3 {[%clk 0:00:09]} 56. Ra7 {[%clk 0:00:01]}  Kh2 {[%clk 0:00:05]} 0-1


[Site "https://www.chess.com"]

[Event "Titled Tuesday Blitz March 21 Early 2023"]
[White "Nefedov, Sergey"]
[Black "Aradhya, Garg"]
[WhiteFideId "24113417"]
[BlackFideId "25006746"]
[WhiteElo "2227"]
[BlackElo "2263"]
[Result "1-0"]
[Round "06"]
[TimeControl "180+2"]
[Date "2023.03.21"]
[WhiteClock "0:00:19"]
[BlackClock "0:00:49"]

1. d4 {[%clk 0:03:00]}  d5 {[%clk 0:02:59]} 2. Nf3 {[%clk 0:03:00]}  Nf6 {[%clk 0:02:59]} 3. Bf4 {[%clk 0:02:58]}  Bf5 {[%clk 0:02:59]} 4. e3 {[%clk 0:02:58]}  e6 {[%clk 0:02:59]} 5. c4 {[%clk 0:02:59]}  Bxb1 {[%clk 0:02:57]} 6. Qxb1 {[%clk 0:02:58]}  Bb4+ {[%clk 0:02:58]} 7. Kd1 {[%clk 0:02:59]}  O-O {[%clk 0:02:57]} 8. Bd3 {[%clk 0:02:58]}  c5 {[%clk 0:02:56]} 9. a3 {[%clk 0:02:49]}  Ba5 {[%clk 0:02:55]} 10. b4 {[%clk 0:02:42]}  dxc4 {[%clk 0:02:55]} 11. Bxc4 {[%clk 0:02:40]}  cxb4 {[%clk 0:02:55]} 12. axb4 {[%clk 0:02:40]}  Bc7 {[%clk 0:02:55]} 13. Bg3 {[%clk 0:02:31]}  Nc6 {[%clk 0:02:54]} 14. Ke2 {[%clk 0:02:30]}  a6 {[%clk 0:02:46]} 15. Rc1 {[%clk 0:02:25]}  Bxg3 {[%clk 0:02:39]} 16. hxg3 {[%clk 0:02:25]}  Qd6 {[%clk 0:02:39]} 17. b5 {[%clk 0:02:20]}  axb5 {[%clk 0:02:38]} 18. Bxb5 {[%clk 0:02:21]}  Nd5 {[%clk 0:02:32]} 19. Bxc6 {[%clk 0:02:16]}  bxc6 {[%clk 0:02:33]} 20. Ne5 {[%clk 0:02:11]}  Rab8 {[%clk 0:02:12]} 21. Qc2 {[%clk 0:02:03]}  Rfc8 {[%clk 0:02:12]} 22. Nxc6 {[%clk 0:01:48]}  g6 {[%clk 0:01:49]} 23. Qc5 {[%clk 0:00:54]}  Rb2+ {[%clk 0:01:48]} 24. Kf3 {[%clk 0:00:52]}  Qd7 {[%clk 0:01:41]} 25. Ra7 {[%clk 0:00:49]}  Qe8 {[%clk 0:01:40]} 26. Ne7+ {[%clk 0:00:30]}  Qxe7 {[%clk 0:01:26]} 27. Rxe7 {[%clk 0:00:20]}  Rxc5 {[%clk 0:01:25]} 28. Re8+ {[%clk 0:00:21]}  Kg7 {[%clk 0:01:26]} 29. dxc5 {[%clk 0:00:21]}  h5 {[%clk 0:01:23]} 30. c6 {[%clk 0:00:22]}  g5 {[%clk 0:01:20]} 31. g4 {[%clk 0:00:21]}  hxg4+ {[%clk 0:01:19]} 32. Kg3 {[%clk 0:00:21]}  Nc7 {[%clk 0:00:57]} 33. Rc8 {[%clk 0:00:20]}  Nd5 {[%clk 0:00:57]} 34. c7 {[%clk 0:00:21]}  Kf6 {[%clk 0:00:52]} 35. Rd8 {[%clk 0:00:19]}  Nxc7 {[%clk 0:00:51]} 36. Rxc7 {[%clk 0:00:20]}  Rb5 {[%clk 0:00:48]} 37. Rf8 {[%clk 0:00:20]}  Ke5 {[%clk 0:00:48]} 38. Rcxf7 {[%clk 0:00:19]}  Kd6 {[%clk 0:00:49]} 39. Kxg4 {[%clk 0:00:19]} 1-0


[Site "https://www.chess.com"]

[Event "Titled Tuesday Blitz March 21 Early 2023"]
[White "The_Sherman_Variation"]
[Black "Dehtiarov, Roman"]
[BlackFideId "14186640"]
[WhiteElo "2553"]
[BlackElo "2162"]
[Result "0-1"]
[Round "06"]
[TimeControl "180+2"]
[Date "2023.03.21"]
[WhiteClock "0:00:19"]
[BlackClock "0:00:04"]

1. g3 {[%clk 0:03:00]}  Nf6 {[%clk 0:02:51]} 2. Bg2 {[%clk 0:03:00]}  g6 {[%clk 0:02:49]} 3. Nf3 {[%clk 0:03:00]}  Bg7 {[%clk 0:02:45]} 4. O-O {[%clk 0:02:58]}  O-O {[%clk 0:02:45]} 5. c4 {[%clk 0:02:58]}  c5 {[%clk 0:02:44]} 6. d3 {[%clk 0:02:58]}  Nc6 {[%clk 0:02:43]} 7. Nc3 {[%clk 0:02:58]}  e5 {[%clk 0:02:43]} 8. a3 {[%clk 0:02:56]}  d6 {[%clk 0:02:44]} 9. Rb1 {[%clk 0:02:55]}  a5 {[%clk 0:02:44]} 10. e4 {[%clk 0:02:49]}  h6 {[%clk 0:02:42]} 11. h3 {[%clk 0:02:47]}  Be6 {[%clk 0:02:42]} 12. Nd5 {[%clk 0:02:47]}  Nh7 {[%clk 0:02:33]} 13. Nh4 {[%clk 0:02:37]}  Bxd5 {[%clk 0:02:13]} 14. cxd5 {[%clk 0:02:33]}  Ne7 {[%clk 0:02:09]} 15. Be3 {[%clk 0:02:33]}  Qd7 {[%clk 0:02:06]} 16. g4 {[%clk 0:02:19]}  b5 {[%clk 0:02:02]} 17. Qd2 {[%clk 0:02:19]}  g5 {[%clk 0:01:53]} 18. Nf5 {[%clk 0:02:17]}  Ng6 {[%clk 0:01:50]} 19. h4 {[%clk 0:02:12]}  Nxh4 {[%clk 0:01:46]} 20. Nxh4 {[%clk 0:02:07]}  gxh4 {[%clk 0:01:47]} 21. f3 {[%clk 0:02:07]}  f6 {[%clk 0:01:39]} 22. Bxh6 {[%clk 0:02:03]}  Bxh6 {[%clk 0:01:39]} 23. Qxh6 {[%clk 0:02:04]}  Ng5 {[%clk 0:01:39]} 24. Qxh4 {[%clk 0:02:03]}  Kg7 {[%clk 0:01:39]} 25. Qg3 {[%clk 0:02:02]}  Rae8 {[%clk 0:01:22]} 26. Kf2 {[%clk 0:02:01]}  c4 {[%clk 0:01:22]} 27. dxc4 {[%clk 0:01:47]}  Qa7+ {[%clk 0:01:22]} 28. Ke2 {[%clk 0:01:47]}  Rc8 {[%clk 0:01:21]} 29. Qf2 {[%clk 0:01:41]}  Qa6 {[%clk 0:01:21]} 30. Qe3 {[%clk 0:01:33]}  Rxc4 {[%clk 0:01:15]} 31. Kf2 {[%clk 0:01:33]}  Rc2+ {[%clk 0:01:10]} 32. Kg3 {[%clk 0:01:32]}  Rfc8 {[%clk 0:01:03]} 33. Rh1 {[%clk 0:01:31]}  b4 {[%clk 0:00:56]} 34. Rh5 {[%clk 0:01:29]}  Kg6 {[%clk 0:00:29]} 35. Bf1 {[%clk 0:00:47]}  Qb7 {[%clk 0:00:21]} 36. Bd3 {[%clk 0:00:46]}  R2c7 {[%clk 0:00:10]} 37. Rbh1 {[%clk 0:00:45]}  Rg8 {[%clk 0:00:10]} 38. Rh6+ {[%clk 0:00:42]}  Kf7 {[%clk 0:00:10]} 39. axb4 {[%clk 0:00:36]}  Qxb4 {[%clk 0:00:08]} 40. Rh7+ {[%clk 0:00:34]}  Rg7 {[%clk 0:00:08]} 41. Rxg7+ {[%clk 0:00:31]}  Kxg7 {[%clk 0:00:09]} 42. Rh5 {[%clk 0:00:31]}  Kg6 {[%clk 0:00:09]} 43. Qe2 {[%clk 0:00:26]}  Rc1 {[%clk 0:00:06]} 44. Bb5 {[%clk 0:00:22]}  Qd4 {[%clk 0:00:05]} 45. Be8+ {[%clk 0:00:21]}  Kg7 {[%clk 0:00:05]} 46. Rh2 {[%clk 0:00:19]}  Qg1+ {[%clk 0:00:04]} 47. Rg2 {[%clk 0:00:20]}  Qh1 {[%clk 0:00:05]} 48. Qd2 {[%clk 0:00:18]}  Qh3+ {[%clk 0:00:03]} 49. Kf2 {[%clk 0:00:19]}  Qxf3# {[%clk 0:00:04]} 0-1


[Site "https://www.chess.com"]

[Event "Titled Tuesday Blitz March 21 Early 2023"]
[White "Basso, Pier Luigi"]
[Black "TimGrutter03"]
[WhiteFideId "866970"]
[WhiteElo "2438"]
[BlackElo "2549"]
[Result "1-0"]
[Round "06"]
[TimeControl "180+2"]
[Date "2023.03.21"]
[WhiteClock "0:02:15"]
[BlackClock "0:00:46"]

1. d4 {[%clk 0:02:55]}  Nf6 {[%clk 0:02:59]} 2. c4 {[%clk 0:02:54]}  g6 {[%clk 0:02:59]} 3. Nc3 {[%clk 0:02:51]}  Bg7 {[%clk 0:02:59]} 4. g3 {[%clk 0:02:50]}  O-O {[%clk 0:02:59]} 5. Bg2 {[%clk 0:02:50]}  d6 {[%clk 0:02:59]} 6. Nf3 {[%clk 0:02:50]}  Nc6 {[%clk 0:02:57]} 7. d5 {[%clk 0:02:49]}  Na5 {[%clk 0:02:56]} 8. b3 {[%clk 0:02:45]}  c6 {[%clk 0:02:49]} 9. dxc6 {[%clk 0:02:42]}  Nxc6 {[%clk 0:02:35]} 10. Bb2 {[%clk 0:02:40]}  Bf5 {[%clk 0:02:33]} 11. O-O {[%clk 0:02:39]}  Ne4 {[%clk 0:02:30]} 12. Qc1 {[%clk 0:02:39]}  Nxc3 {[%clk 0:02:23]} 13. Bxc3 {[%clk 0:02:40]}  Bxc3 {[%clk 0:02:22]} 14. Qxc3 {[%clk 0:02:40]}  Qd7 {[%clk 0:02:16]} 15. Rad1 {[%clk 0:02:37]}  Bh3 {[%clk 0:02:12]} 16. Qe3 {[%clk 0:02:34]}  Bxg2 {[%clk 0:02:10]} 17. Kxg2 {[%clk 0:02:35]}  Qc7 {[%clk 0:02:01]} 18. h4 {[%clk 0:02:33]}  Qb6 {[%clk 0:01:49]} 19. Qh6 {[%clk 0:02:32]}  f6 {[%clk 0:01:39]} 20. Rd5 {[%clk 0:02:31]}  Nd8 {[%clk 0:01:29]} 21. h5 {[%clk 0:02:23]}  Nf7 {[%clk 0:01:18]} 22. Qf4 {[%clk 0:02:21]}  g5 {[%clk 0:01:14]} 23. Qf5 {[%clk 0:02:21]}  Qc6 {[%clk 0:01:08]} 24. Qe6 {[%clk 0:02:19]}  Rae8 {[%clk 0:01:01]} 25. Nd4 {[%clk 0:02:18]}  Qc8 {[%clk 0:01:01]} 26. f4 {[%clk 0:02:18]}  Kh8 {[%clk 0:00:55]} 27. Qxc8 {[%clk 0:02:15]}  Rxc8 {[%clk 0:00:54]} 28. Ne6 {[%clk 0:02:16]}  Rg8 {[%clk 0:00:54]} 29. fxg5 {[%clk 0:02:16]}  Nxg5 {[%clk 0:00:55]} 30. Nxg5 {[%clk 0:02:16]}  Rxg5 {[%clk 0:00:54]} 31. Rxg5 {[%clk 0:02:16]}  fxg5 {[%clk 0:00:55]} 32. Rf7 {[%clk 0:02:16]}  Rc7 {[%clk 0:00:48]} 33. h6 {[%clk 0:02:15]}  a6 {[%clk 0:00:46]} 34. Rf8# {[%clk 0:02:15]} 1-0


[Site "https://www.chess.com"]

[Event "Titled Tuesday Blitz March 21 Early 2023"]
[White "Mindlin, Alon"]
[Black "Kuzmin, Roman"]
[WhiteFideId "2800071"]
[BlackFideId "44134932"]
[WhiteElo "2430"]
[BlackElo "2146"]
[Result "1-0"]
[Round "06"]
[TimeControl "180+2"]
[Date "2023.03.21"]
[WhiteClock "0:00:18"]
[BlackClock "0:00:01"]

1. d4 {[%clk 0:03:00]}  Nf6 {[%clk 0:02:59]} 2. c4 {[%clk 0:03:01]}  e6 {[%clk 0:02:58]} 3. Nf3 {[%clk 0:02:46]}  d5 {[%clk 0:02:57]} 4. Nc3 {[%clk 0:02:41]}  c6 {[%clk 0:02:55]} 5. Bg5 {[%clk 0:02:32]}  Nbd7 {[%clk 0:02:50]} 6. e3 {[%clk 0:02:31]}  Qa5 {[%clk 0:02:46]} 7. Nd2 {[%clk 0:02:30]}  dxc4 {[%clk 0:02:43]} 8. Bxf6 {[%clk 0:02:30]}  Nxf6 {[%clk 0:02:43]} 9. Nxc4 {[%clk 0:02:31]}  Qc7 {[%clk 0:02:40]} 10. Be2 {[%clk 0:02:32]}  Be7 {[%clk 0:02:40]} 11. Rc1 {[%clk 0:02:32]}  O-O {[%clk 0:02:40]} 12. O-O {[%clk 0:02:32]}  Rd8 {[%clk 0:02:40]} 13. Qb3 {[%clk 0:02:23]}  Bd7 {[%clk 0:02:37]} 14. Bf3 {[%clk 0:02:22]}  Be8 {[%clk 0:02:37]} 15. Rfd1 {[%clk 0:02:21]}  Rac8 {[%clk 0:02:34]} 16. a4 {[%clk 0:02:19]}  b6 {[%clk 0:02:33]} 17. Ne5 {[%clk 0:02:17]}  c5 {[%clk 0:02:31]} 18. Nb5 {[%clk 0:02:15]}  Qb8 {[%clk 0:02:31]} 19. h3 {[%clk 0:02:07]}  a6 {[%clk 0:02:27]} 20. Nc3 {[%clk 0:02:05]}  cxd4 {[%clk 0:02:27]} 21. exd4 {[%clk 0:02:05]}  b5 {[%clk 0:02:26]} 22. axb5 {[%clk 0:02:04]}  axb5 {[%clk 0:02:27]} 23. Ne2 {[%clk 0:01:48]}  Qb6 {[%clk 0:01:53]} 24. Nc4 {[%clk 0:01:30]}  Qa7 {[%clk 0:01:35]} 25. Ne3 {[%clk 0:01:22]}  Qa4 {[%clk 0:01:32]} 26. Qd3 {[%clk 0:01:14]}  Qb4 {[%clk 0:01:24]} 27. b3 {[%clk 0:01:13]}  Rxc1 {[%clk 0:00:50]} 28. Rxc1 {[%clk 0:01:12]}  Bc5 {[%clk 0:00:51]} 29. Rd1 {[%clk 0:00:48]}  g6 {[%clk 0:00:41]} 30. Qc2 {[%clk 0:00:38]}  Bxd4 {[%clk 0:00:33]} 31. Qc7 {[%clk 0:00:31]}  Rd7 {[%clk 0:00:20]} 32. Qf4 {[%clk 0:00:29]}  Bc3 {[%clk 0:00:08]} 33. Qb8 {[%clk 0:00:26]}  Rxd1+ {[%clk 0:00:07]} 34. Nxd1 {[%clk 0:00:26]}  Ba1 {[%clk 0:00:04]} 35. Qa7 {[%clk 0:00:24]}  Be5 {[%clk 0:00:02]} 36. Kf1 {[%clk 0:00:23]}  Qxb3 {[%clk 0:00:03]} 37. Ng3 {[%clk 0:00:19]}  Kg7 {[%clk 0:00:02]} 38. Qc5 {[%clk 0:00:18]}  Bxg3 {[%clk 0:00:01]} 39. fxg3 {[%clk 0:00:18]}  b4 {[%clk 0:00:01]} 40. Qe5 {[%clk 0:00:18]} 1-0


[Site "https://www.chess.com"]